fUSD/lending_fUSD_20240904
["ID","MTS","AMOUNT","RATE_DAILY","PERIOD"]
[337131140,1725449456393,-500.0,0.00014509,2]
[337131141,1725449456402,-1190.22,0.00014509,2]
[337131142,1725449456410,-617.86233584,0.00014509,2]
[337131143,1725449456419,-751.27,0.00014509,2]
[337131144,1725449456428,-500.0,0.00014509,2]
[337131145,1725449456439,-500.0,0.00014509,2]
[337131146,1725449456449,-500.0,0.00014509,2]
[337131147,1725449456458,-500.0,0.00014509,2]
[337131148,1725449456467,-500.0,0.00014509,2]
[337131149,1725449456475,-500.0,0.00014509,2]
[337131150,1725449456484,-616.06,0.00014509,2]
[337131151,1725449456493,-500.0,0.00014509,2]
[337131152,1725449456502,-591.9,0.00014509,2]
[337131153,1725449456511,-500.0,0.00014509,2]
[337131154,1725449456520,-1611.6,0.00014509,2]
[337131155,1725449456530,-674.07,0.00014509,2]
[337131156,1725449456539,-640.53,0.00014509,2]
[337131157,1725449456548,-500.0,0.00014509,2]
[337131158,1725449456557,-500.0,0.00014509,2]
[337131159,1725449456567,-176.48,0.00014509,2]
[337131160,1725449456576,-500.0,0.00014509,2]
[337131161,1725449456585,-7384.92976806,0.00014533,2]
[337131162,1725449456594,-247.49707,0.00014534,2]
[337131163,1725449456603,-500.0,0.00014534,2]
[337131164,1725449456613,-794.24696768,0.00014534,2]
[337131165,1725449456624,-23201.5,0.00014535,2]
[337131166,1725449456633,-5539.45,0.00014535,2]
[337131167,1725449456642,-1688.75,0.00014535,2]
[337131168,1725449456651,-13416.06,0.00014535,2]
[337131169,1725449456660,-535.76,0.00014535,2]
[337131170,1725449456670,-3433.42,0.00014535,2]
[337131171,1725449456679,-2953.99,0.00014535,2]
[337131172,1725449456688,-2697.86,0.00014535,2]
[337131173,1725449456697,-2455.98,0.00014535,2]
[337131174,1725449456707,-1458.47,0.00014535,2]
[337131175,1725449456716,-1539.43,0.00014535,2]
[337131176,1725449456725,-1663.46,0.00014535,2]
[337131177,1725449456735,-1537.73,0.00014535,2]
[337131178,1725449456744,-1998.34,0.00014535,2]
[337131179,1725449456753,-1619.01,0.00014535,2]
[337131180,1725449456763,-3130.22,0.00014535,2]
[337131181,1725449456772,-1955.73,0.00014535,2]
[337131182,1725449456782,-2371.43,0.00014535,2]
[337131183,1725449456791,-1686.85,0.00014535,2]
[337131184,1725449456801,-2723.93,0.00014535,2]
[337131185,1725449456810,-3148.4,0.00014535,2]
[337131186,1725449456819,-2514.65,0.00014535,2]
[337131187,1725449456828,-2580.18,0.00014535,2]
[337131188,1725449456837,-2090.96,0.00014535,2]
[337131189,1725449456846,-500.0,0.00014535,2]
[337131190,1725449456855,-2568.97,0.00014535,2]
[337131191,1725449456865,-500.0,0.00014535,2]
[337131192,1725449456874,-500.0,0.00014535,2]
[337131193,1725449456883,-2030.75,0.00014535,2]
[337131194,1725449456892,-528.34,0.00014535,2]
[337131195,1725449456902,-500.0,0.00014535,2]
[337131196,1725449456911,-1849.72,0.00014535,2]
[337131197,1725449456920,-4004.18,0.00014535,2]
[337131198,1725449456929,-5088.19,0.00014535,2]
[337131199,1725449456938,-3368.35,0.00014535,2]
[337131200,1725449456947,-5233.57,0.00014535,2]
[337131201,1725449456956,-2722.26,0.00014535,2]
[337131202,1725449456965,-4120.65,0.00014535,2]
[337131203,1725449456975,-3266.49,0.00014535,2]
[337131204,1725449456984,-2686.82,0.00014535,2]
[337131205,1725449457003,-3467.38,0.00014535,2]
[337131206,1725449457019,-2725.67,0.00014535,2]
[337131207,1725449457036,-159.52,0.00014535,2]
[337131208,1725449457055,-1969.53,0.00014535,2]
[337131209,1725449457073,-2189.75,0.00014535,2]
[337131210,1725449457089,-4297.84,0.00014535,2]
[337131211,1725449457105,-3268.74,0.00014535,2]
[337131212,1725449457120,-533.47,0.00014535,2]
[337131213,1725449457135,-974.58,0.00014535,2]
[337131214,1725449457153,-500.0,0.00014535,2]
[337131215,1725449457172,-520.8,0.00014535,2]
[337131216,1725449457186,-518.06,0.00014535,2]
[337131217,1725449457202,-500.0,0.00014535,2]
[337131218,1725449457217,-500.0,0.00014535,2]
[337131219,1725449457235,-500.0,0.00014535,2]
[337131220,1725449457249,-500.0,0.00014535,2]
[337131221,1725449457266,-961007.47671131,0.00014535,2]
[337131222,1725449457282,-652.86,0.00014536,2]
[337131223,1725449457296,-500.0,0.00014536,2]
[337131224,1725449457312,-771.47,0.00014536,2]
[337131225,1725449457328,-1123.87,0.00014536,2]
[337131226,1725449457346,-1227.15,0.00014536,2]
[337131227,1725449457364,-500.0,0.00014536,2]
[337131228,1725449457380,-572.05,0.00014536,2]
[337131229,1725449457396,-554.38,0.00014536,2]
[337131230,1725449457411,-552.45,0.00014536,2]
[337131231,1725449457426,-1529.17,0.00014536,2]
[337131232,1725449457442,-1188.55,0.00014536,2]
[337131233,1725449457462,-500.0,0.00014536,2]
[337131234,1725449457477,-500.0,0.00014536,2]
[337131235,1725449457492,-1397.49,0.00014536,2]
[337131236,1725449457507,-1471.13,0.00014536,2]
[337131237,1725449457523,-500.0,0.00014536,2]
[337131238,1725449457537,-911.38,0.00014536,2]
[337131239,1725449457552,-1901.84,0.00014536,2]
[337131240,1725449457568,-500.0,0.00014536,2]
[337131241,1725449457583,-634.36,0.00014536,2]
[337131242,1725449457597,-1038.33,0.00014536,2]
[337131243,1725449457613,-2122.64,0.00014536,2]
[337131244,1725449457627,-1195.18,0.00014536,2]
[337131245,1725449457644,-1171.03,0.00014536,2]
[337131246,1725449457658,-500.0,0.00014536,2]
[337131247,1725449457673,-815.19,0.00014536,2]
[337131248,1725449457688,-500.0,0.00014536,2]
[337131249,1725449457703,-976.03,0.00014536,2]
[337131250,1725449457718,-1026.29,0.00014536,2]
[337131251,1725449457734,-1252.99,0.00014536,2]
[337131252,1725449457749,-652.49,0.00014536,2]
[337131253,1725449457764,-500.0,0.00014536,2]
[337131254,1725449457779,-500.0,0.00014536,2]
[337131255,1725449457795,-933.35,0.00014536,2]
[337131256,1725449457810,-744.49,0.00014536,2]
[337131257,1725449457825,-1916.86,0.00014536,2]
[337131258,1725449457840,-500.0,0.00014536,2]
[337131259,1725449457855,-500.0,0.00014536,2]
[337131260,1725449457870,-1770.21,0.00014536,2]
[337131261,1725449457885,-500.0,0.00014536,2]
[337131262,1725449457900,-591.1,0.00014536,2]
[337131263,1725449457915,-967.58,0.00014536,2]
[337131264,1725449457930,-500.0,0.00014536,2]
[337131265,1725449457945,-1435.69,0.00014536,2]
[337131266,1725449457960,-684.61,0.00014536,2]
[337131267,1725449457975,-595.56,0.00014536,2]
[337131268,1725449457990,-647.61,0.00014536,2]
[337131269,1725449458006,-400.6144013,0.00014536,2]
[337131270,1725449458021,-311.54668138,0.00014536,2]
[337131271,1725449458036,-500.0,0.00014536,2]
[337131272,1725449458051,-838.38,0.00014536,2]
[337131273,1725449458067,-575.81,0.00014536,2]
[337131274,1725449458082,-1391.33,0.00014536,2]
[337131275,1725449458097,-686.07,0.00014536,2]
[337131276,1725449458112,-912.68,0.00014536,2]
[337131277,1725449458127,-569.41,0.00014536,2]
[337131278,1725449458141,-2107.27,0.00014536,2]
[337131279,1725449458157,-1515.5,0.00014536,2]
[337131280,1725449458173,-2620.23,0.00014536,2]
[337131281,1725449458187,-1240.47,0.00014536,2]
[337131282,1725449458203,-500.0,0.00014536,2]
[337131283,1725449458222,-849.25,0.00014536,2]
[337131284,1725449458238,-573.05,0.00014536,2]
[337131285,1725449458254,-1382.52,0.00014536,2]
[337131286,1725449458270,-997.23,0.00014536,2]
[337131287,1725449458287,-500.0,0.00014536,2]
[337131288,1725449458303,-861.36,0.00014536,2]
[337131289,1725449458319,-871.28,0.00014536,2]
[337131290,1725449458334,-810.79,0.00014536,2]
[337131291,1725449458351,-987.36,0.00014536,2]
[337131292,1725449458368,-616.9,0.00014536,2]
[337131293,1725449458383,-630.83,0.00014536,2]
[337131294,1725449458398,-899.26,0.00014536,2]
[337131295,1725449458413,-782.71,0.00014536,2]
[337131296,1725449458428,-500.0,0.00014536,2]
[337131297,1725449458443,-500.0,0.00014536,2]
[337131298,1725449458458,-1059.12,0.00014536,2]
[337131299,1725449458472,-539.69,0.00014536,2]
[337131300,1725449458487,-1240.53,0.00014536,2]
[337131301,1725449458501,-500.0,0.00014537,2]
[337131302,1725449458516,-841.19,0.00014537,2]
[337131303,1725449458532,-500.0,0.00014537,2]
[337131304,1725449458546,-500.0,0.00014537,2]
[337131305,1725449458561,-2461.64325602,0.00014545,2]
[337131306,1725449458576,-735.12,0.00014548,2]
[337131307,1725449458590,-1122.8,0.00014548,2]
[337131308,1725449458606,-1264.8,0.00014548,2]
[337131309,1725449458621,-1258.15,0.00014548,2]
[337131310,1725449458636,-1814.06,0.00014548,2]
[337131311,1725449458652,-2485.24,0.00014548,2]
[337131312,1725449458667,-1692.86,0.00014548,2]
[337131313,1725449458677,-1621.85,0.00014548,2]
[337131314,1725449458989,-2881.94,0.00014548,2]
[337131315,1725449459009,-6092.26,0.00014548,2]
[337131316,1725449459022,-1434.96,0.00014548,2]
[337131317,1725449459032,-2641.74,0.00014548,2]
[337131318,1725449459042,-1743.77,0.00014548,2]
[337131319,1725449459051,-2069.39,0.00014548,2]
[337131320,1725449459061,-4222.26,0.00014548,2]
[337131321,1725449459070,-2718.35,0.00014548,2]
[337131322,1725449459079,-2191.73,0.00014548,2]
[337131323,1725449459089,-2886.04,0.00014548,2]
[337131324,1725449459099,-5307.94,0.00014548,2]
[337131325,1725449459109,-1668.35,0.00014548,2]
[337131326,1725449459118,-3836.89,0.00014548,2]
[337131327,1725449459128,-1987.06,0.00014548,2]
[337131328,1725449459138,-6705.01,0.00014548,2]
[337131329,1725449459147,-3942.48,0.00014548,2]
[337131330,1725449459157,-2468.26,0.00014548,2]
[337131331,1725449459166,-3967.05,0.00014548,2]
[337131332,1725449459175,-3336.2,0.00014548,2]
[337131333,1725449459185,-17292.54,0.00014548,2]
[337131334,1725449459195,-1717.06,0.00014548,2]
[337131335,1725449459204,-12177.64,0.00014548,2]
[337131336,1725449459214,-13920.9,0.00014548,2]
[337131337,1725449459223,-3322.17,0.00014548,2]
[337131338,1725449459233,-1012.16,0.00014548,2]
[337131339,1725449459242,-8049.63,0.00014548,2]
[337131340,1725449459251,-2670.62,0.00014548,2]
[337131341,1725449459261,-4068.02,0.00014548,2]
[337131342,1725449459270,-500.0,0.00014548,2]
[337131343,1725449459280,-500.0,0.00014548,2]
[337131344,1725449459297,-500.0,0.00014548,2]
[337131345,1725449459306,-500.0,0.00014548,2]
[337131346,1725449459315,-498.6,0.00014548,2]
[337131347,1725449459325,-500.0,0.00014549,2]
[337131348,1725449459335,-1208.79,0.00014549,2]
[337131349,1725449459349,-500.0,0.00014549,2]
[337131350,1725449459361,-513.52,0.00014549,2]
[337131351,1725449459370,-841.19,0.00014549,2]
[337131352,1725449459379,-500.0,0.00014549,2]
[337131353,1725449459389,-500.0,0.00014549,2]
[337131354,1725449459398,-500.0,0.00014549,2]
[337131355,1725449459408,-212.03296898,0.00014549,2]
[337131356,1725449459417,-500.0,0.00014549,2]
[337131357,1725449459427,-539.51,0.00014549,2]
[337131358,1725449459439,-975.62,0.00014549,2]
[337131359,1725449459449,-500.0,0.00014549,2]
[337131360,1725449459459,-641.61,0.00014549,2]
[337131361,1725449459469,-500.0,0.00014549,2]
[337131362,1725449459479,-637.09033863,0.00014549,2]
[337131363,1725449459490,-653.03,0.00014549,2]
[337131364,1725449459499,-657.0,0.00014549,2]
[337131365,1725449459510,-646.17,0.00014549,2]
[337131366,1725449459520,-769.15,0.00014549,2]
[337131367,1725449459531,-600.5,0.00014549,2]
[337131368,1725449459541,-878.21,0.00014549,2]
[337131369,1725449459550,-500.0,0.00014549,2]
[337131370,1725449459560,-500.0,0.00014549,2]
[337131371,1725449459569,-500.0,0.00014549,2]
[337131372,1725449459579,-500.0,0.00014549,2]
[337131373,1725449459588,-500.0,0.00014549,2]
[337131374,1725449459598,-500.0,0.00014549,2]
[337131375,1725449459608,-500.0,0.00014549,2]
[337131376,1725449459618,-500.0,0.00014549,2]
[337131377,1725449459627,-500.0,0.00014549,2]
[337131378,1725449459637,-500.0,0.00014549,2]
[337131379,1725449459647,-500.0,0.00014549,2]
[337131380,1725449459656,-500.0,0.00014555,2]
[337131381,1725449459666,-500.0,0.00014555,2]
[337131382,1725449459676,-850.78,0.00014555,2]
[337131383,1725449459686,-500.0,0.00014555,2]
[337131384,1725449459695,-500.0,0.00014555,2]
[337131385,1725449459705,-611.49,0.00014555,2]
[337131386,1725449459715,-1163.73,0.00014555,2]
[337131387,1725449459724,-500.0,0.00014555,2]
[337131388,1725449459733,-1101.55,0.00014555,2]
[337131389,1725449459743,-500.0,0.00014555,2]
[337131390,1725449459752,-957.91,0.00014555,2]
[337131391,1725449459761,-1400.93,0.00014555,2]
[337131392,1725449459771,-500.0,0.00014555,2]
[337131393,1725449459781,-500.0,0.00014555,2]
[337131394,1725449459790,-602.85,0.00014555,2]
[337131395,1725449459800,-500.0,0.00014555,2]
[337131396,1725449459810,-500.0,0.00014555,2]
[337131397,1725449459819,-680.99,0.00014555,2]
[337131398,1725449459829,-737.84,0.00014555,2]
[337131399,1725449459839,-555.09,0.00014555,2]
[337131400,1725449459849,-500.0,0.00014555,2]
[337131401,1725449459858,-531.28,0.00014555,2]
[337131402,1725449459868,-500.0,0.00014555,2]
[337131403,1725449459878,-500.0,0.00014555,2]
[337131404,1725449459887,-500.0,0.00014555,2]
[337131405,1725449459897,-3148.4,0.00014555,2]
[337131406,1725449459907,-500.0,0.00014555,2]
[337131407,1725449459917,-500.0,0.00014555,2]
[337131408,1725449459927,-500.0,0.00014555,2]
[337131409,1725449459936,-2030.75,0.00014555,2]
[337131410,1725449459946,-528.34,0.00014555,2]
[337131411,1725449459955,-500.0,0.00014555,2]
[337131412,1725449459964,-159.52,0.00014555,2]
[337131413,1725449459974,-533.47,0.00014555,2]
[337131414,1725449459983,-974.58,0.00014555,2]
[337131415,1725449459992,-500.0,0.00014555,2]
[337131416,1725449460001,-520.8,0.00014555,2]
[337131417,1725449460011,-518.06,0.00014555,2]
[337131418,1725449460020,-500.0,0.00014555,2]
[337131419,1725449460029,-500.0,0.00014555,2]
[337131420,1725449460038,-500.0,0.00014555,2]
[337131421,1725449460047,-500.0,0.00014555,2]
[337131422,1725449460057,-581.89,0.00014556,2]
[337131423,1725449460067,-500.0,0.00014556,2]
[337131424,1725449460076,-500.0,0.00014556,2]
[337131425,1725449460086,-4784.68,0.00014556,2]
[337131426,1725449460095,-500.0,0.00014556,2]
[337131427,1725449460104,-500.0,0.00014556,2]
[337131428,1725449460113,-1032.23,0.00014556,2]
[337131429,1725449460123,-1090.29,0.00014556,2]
[337131430,1725449460132,-500.0,0.00014556,2]
[337131431,1725449460141,-500.0,0.00014556,2]
[337131432,1725449460150,-500.0,0.00014556,2]
[337131433,1725449460159,-500.0,0.00014556,2]
[337131434,1725449460169,-500.0,0.00014556,2]
[337131435,1725449460178,-500.0,0.00014556,2]
[337131436,1725449460187,-500.0,0.00014556,2]
[337131437,1725449460196,-500.0,0.00014556,2]
[337131438,1725449460205,-500.0,0.00014556,2]
[337131439,1725449460214,-500.0,0.00014556,2]
[337131440,1725449460224,-660.36,0.00014556,2]
[337131441,1725449460233,-165.98138283,0.00014556,2]
[337131442,1725449460242,-500.0,0.00014556,2]
[337131443,1725449460251,-500.0,0.00014556,2]
[337131444,1725449460260,-500.0,0.00014556,2]
[337131445,1725449460270,-500.0,0.00014556,2]
[337131446,1725449460279,-786.19,0.00014556,2]
[337131447,1725449460289,-1202.42,0.00014556,2]
[337131448,1725449460298,-500.0,0.00014556,2]
[337131449,1725449460308,-500.0,0.00014556,2]
[337131450,1725449460317,-500.0,0.00014556,2]
[337131451,1725449460326,-659.28,0.00014556,2]
[337131452,1725449460335,-500.0,0.00014556,2]
[337131453,1725449460345,-500.0,0.00014556,2]
[337131454,1725449460358,-650.85,0.00014556,2]
[337131455,1725449460367,-862.21,0.00014556,2]
[337131456,1725449460376,-524.35,0.00014556,2]
[337131457,1725449460386,-500.0,0.00014556,2]
[337131458,1725449460395,-540.61,0.00014556,2]
[337131459,1725449460404,-270.26477817,0.00014556,2]
[337131460,1725449460413,-500.0,0.00014556,2]
[337131461,1725449460422,-1723.04,0.00014556,2]
[337131462,1725449460433,-500.0,0.00014556,2]
[337131463,1725449460442,-500.0,0.00014556,2]
[337131464,1725449460451,-500.0,0.00014556,2]
[337131465,1725449460460,-500.0,0.00014556,2]
[337131466,1725449460470,-1135.56,0.00014556,2]
[337131467,1725449460479,-500.0,0.00014556,2]
[337131468,1725449460488,-1532.66,0.00014556,2]
[337131469,1725449460497,-1762.58,0.00014556,2]
[337131470,1725449460506,-500.0,0.00014556,2]
[337131471,1725449460517,-892.7,0.00014556,2]
[337131472,1725449460527,-500.0,0.00014556,2]
[337131473,1725449460536,-1403.23,0.00014556,2]
[337131474,1725449460546,-1519.56,0.00014556,2]
[337131475,1725449460555,-500.0,0.00014556,2]
[337131476,1725449460564,-606.34,0.00014556,2]
[337131477,1725449460574,-817.36,0.00014556,2]
[337131478,1725449460583,-500.0,0.00014556,2]
[337131479,1725449460592,-1019.91,0.00014556,2]
[337131480,1725449460601,-500.0,0.00014556,2]
[337131481,1725449460611,-966.96,0.00014556,2]
[337131482,1725449460620,-1262.13,0.00014556,2]
[337131483,1725449460629,-1042.67,0.00014556,2]
[337131484,1725449460638,-500.0,0.00014556,2]
[337131485,1725449460647,-500.0,0.00014556,2]
[337131486,1725449460657,-500.0,0.00014556,2]
[337131487,1725449460666,-500.0,0.00014556,2]
[337131488,1725449460675,-500.0,0.00014556,2]
[337131489,1725449460685,-500.0,0.00014556,2]
[337131490,1725449460694,-500.0,0.00014556,2]
[337131491,1725449460703,-500.0,0.00014556,2]
[337131492,1725449460712,-500.0,0.00014556,2]
[337131493,1725449460722,-500.0,0.00014556,2]
[337131494,1725449460731,-500.0,0.00014556,2]
[337131495,1725449460740,-500.0,0.00014556,2]
[337131496,1725449460750,-500.0,0.00014556,2]
[337131497,1725449460759,-500.0,0.00014556,2]
[337131498,1725449460769,-558.31,0.00014556,2]
[337131499,1725449460778,-500.0,0.00014556,2]
[337131500,1725449460790,-500.0,0.00014556,2]
[337131501,1725449460800,-500.0,0.00014556,2]
[337131502,1725449460809,-500.0,0.00014556,2]
[337131503,1725449460819,-500.0,0.00014556,2]
[337131504,1725449460828,-23201.5,0.00014556,2]
[337131505,1725449460838,-5539.45,0.00014556,2]
[337131506,1725449460847,-1688.75,0.00014556,2]
[337131507,1725449460857,-13416.06,0.00014556,2]
[337131508,1725449460867,-535.76,0.00014556,2]
[337131509,1725449460876,-3433.42,0.00014556,2]
[337131510,1725449460886,-2953.99,0.00014556,2]
[337131511,1725449460896,-2697.86,0.00014556,2]
[337131512,1725449460906,-2455.98,0.00014556,2]
[337131513,1725449460916,-1458.47,0.00014556,2]
[337131514,1725449460926,-1539.43,0.00014556,2]
[337131515,1725449460936,-1663.46,0.00014556,2]
[337131516,1725449460946,-1537.73,0.00014556,2]
[337131517,1725449460955,-1998.34,0.00014556,2]
[337131518,1725449460965,-1619.01,0.00014556,2]
[337131519,1725449460975,-3130.22,0.00014556,2]
[337131520,1725449460985,-1955.73,0.00014556,2]
[337131521,1725449460995,-2371.43,0.00014556,2]
[337131522,1725449461004,-1686.85,0.00014556,2]
[337131523,1725449461013,-2723.93,0.00014556,2]
[337131524,1725449461023,-2514.65,0.00014556,2]
[337131525,1725449461034,-2580.18,0.00014556,2]
[337131526,1725449461043,-2090.96,0.00014556,2]
[337131527,1725449461053,-2568.97,0.00014556,2]
[337131528,1725449461062,-1849.72,0.00014556,2]
[337131529,1725449461071,-4004.18,0.00014556,2]
[337131530,1725449461081,-5088.19,0.00014556,2]
[337131531,1725449461091,-3368.35,0.00014556,2]
[337131532,1725449461100,-5233.57,0.00014556,2]
[337131533,1725449461109,-2722.26,0.00014556,2]
[337131534,1725449461119,-4120.65,0.00014556,2]
[337131535,1725449461128,-3266.49,0.00014556,2]
[337131536,1725449461138,-2686.82,0.00014556,2]
[337131537,1725449461147,-3467.38,0.00014556,2]
[337131538,1725449461157,-2725.67,0.00014556,2]
[337131539,1725449461166,-159.52,0.00014556,2]
[337131540,1725449461176,-1969.53,0.00014556,2]
[337131541,1725449461185,-2189.75,0.00014556,2]
[337131542,1725449461195,-4297.84,0.00014556,2]
[337131543,1725449461205,-3268.74,0.00014556,2]
[337131544,1725449461214,-533.47,0.00014556,2]
[337131545,1725449461224,-500.0,0.00014556,2]
[337131546,1725449461233,-500.0,0.00014556,2]
[337131547,1725449461243,-652.86,0.00014557,2]
[337131548,1725449461252,-500.0,0.00014557,2]
[337131549,1725449461263,-771.47,0.00014557,2]
[337131550,1725449461273,-1123.87,0.00014557,2]
[337131551,1725449461285,-1227.15,0.00014557,2]
[337131552,1725449461295,-500.0,0.00014557,2]
[337131553,1725449461305,-572.05,0.00014557,2]
[337131554,1725449461314,-554.38,0.00014557,2]
[337131555,1725449461324,-552.45,0.00014557,2]
[337131556,1725449461333,-1529.17,0.00014557,2]
[337131557,1725449461343,-1188.55,0.00014557,2]
[337131558,1725449461355,-500.0,0.00014557,2]
[337131559,1725449461364,-500.0,0.00014557,2]
[337131560,1725449461374,-1471.13,0.00014557,2]
[337131561,1725449461384,-1397.49,0.00014557,2]
[337131562,1725449461394,-609.59872541,0.00014557,2]
[337131563,1725449461403,-911.38,0.00014557,2]
[337131564,1725449461412,-1901.84,0.00014557,2]
[337131565,1725449461422,-449.7955889,0.00014557,2]
[337131566,1725449461431,-634.36,0.00014557,2]
[337131567,1725449461441,-1038.33,0.00014557,2]
[337131568,1725449461451,-2122.64,0.00014557,2]
[337131569,1725449461460,-1195.18,0.00014557,2]
[337131570,1725449461469,-1171.03,0.00014557,2]
[337131571,1725449461478,-500.0,0.00014557,2]
[337131572,1725449461488,-815.19,0.00014557,2]
[337131573,1725449461498,-500.0,0.00014557,2]
[337131574,1725449461507,-976.03,0.00014557,2]
[337131575,1725449461517,-1026.29,0.00014557,2]
[337131576,1725449461527,-1252.99,0.00014557,2]
[337131577,1725449461543,-652.49,0.00014557,2]
[337131578,1725449461556,-500.0,0.00014557,2]
[337131579,1725449461565,-500.0,0.00014557,2]
[337131580,1725449461575,-933.35,0.00014557,2]
[337131581,1725449461584,-744.49,0.00014557,2]
[337131582,1725449461594,-1916.86,0.00014557,2]
[337131583,1725449461604,-500.0,0.00014557,2]
[337131584,1725449461614,-500.0,0.00014557,2]
[337131585,1725449461623,-1770.21,0.00014557,2]
[337131586,1725449461632,-258.54929323,0.00014557,2]
[337131587,1725449461642,-591.1,0.00014557,2]
[337131588,1725449461652,-967.58,0.00014557,2]
[337131589,1725449461662,-1435.69,0.00014557,2]
[337131590,1725449461671,-500.0,0.00014557,2]
[337131591,1725449461680,-684.61,0.00014557,2]
[337131592,1725449461690,-595.56,0.00014557,2]
[337131593,1725449461699,-647.61,0.00014557,2]
[337131594,1725449461708,-515.00111103,0.00014557,2]
[337131595,1725449461717,-838.38,0.00014557,2]
[337131596,1725449461727,-575.81,0.00014557,2]
[337131597,1725449461736,-1391.33,0.00014557,2]
[337131598,1725449461746,-686.07,0.00014557,2]
[337131599,1725449461755,-912.68,0.00014557,2]
[337131600,1725449461764,-569.41,0.00014557,2]
[337131601,1725449461774,-2107.27,0.00014557,2]
[337131602,1725449461788,-1515.5,0.00014557,2]
[337131603,1725449461797,-2620.23,0.00014557,2]
[337131604,1725449461806,-1240.47,0.00014557,2]
[337131605,1725449461816,-500.0,0.00014557,2]
[337131606,1725449461826,-849.25,0.00014557,2]
[337131607,1725449461835,-573.05,0.00014557,2]
[337131608,1725449461845,-1382.52,0.00014557,2]
[337131609,1725449461854,-997.23,0.00014557,2]
[337131610,1725449461863,-214.54789372,0.00014557,2]
[337131611,1725449461873,-861.36,0.00014557,2]
[337131612,1725449461883,-871.28,0.00014557,2]
[337131613,1725449461893,-810.79,0.00014557,2]
[337131614,1725449461904,-987.36,0.00014557,2]
[337131615,1725449461914,-616.9,0.00014557,2]
[337131616,1725449461923,-630.83,0.00014557,2]
[337131617,1725449461933,-899.26,0.00014557,2]
[337131618,1725449461942,-782.71,0.00014557,2]
[337131619,1725449461952,-500.0,0.00014557,2]
[337131620,1725449461961,-500.0,0.00014557,2]
[337131621,1725449461971,-1059.12,0.00014557,2]
[337131622,1725449461980,-539.69,0.00014557,2]
[337131623,1725449461989,-1240.53,0.00014557,2]
[337131624,1725449461998,-735.12,0.00014557,2]
[337131625,1725449462007,-1122.8,0.00014557,2]
[337131626,1725449462017,-1264.8,0.00014557,2]
[337131627,1725449462026,-1258.15,0.00014557,2]
[337131628,1725449462039,-1814.06,0.00014557,2]
[337131629,1725449462048,-2485.24,0.00014557,2]
[337131630,1725449462058,-1692.86,0.00014557,2]
[337131631,1725449462067,-1621.85,0.00014557,2]
[337131632,1725449462076,-2881.94,0.00014557,2]
[337131633,1725449462085,-6092.26,0.00014557,2]
[337131634,1725449462094,-1434.96,0.00014557,2]
[337131635,1725449462103,-2641.74,0.00014557,2]
[337131636,1725449462112,-1743.77,0.00014557,2]
[337131637,1725449462121,-2069.39,0.00014557,2]
[337131638,1725449462130,-4222.26,0.00014557,2]
[337131639,1725449462139,-2718.35,0.00014557,2]